[Event "Bijnor Open 2023"]
[Site "Bijnor"]
[Date "2023.12.02"]
[Round "5.1"]
[White "Kulkarni, Vikramaditya"]
[Black "Sparsh Yadav"]
[Result "1-0"]
[ECO "E90"]
[WhiteElo "2209"]
[BlackElo "1598"]
[Annotator "RC"]
[PlyCount "109"]
[EventDate "2023.11.29"]
[EventCountry "IND"]
[SourceTitle "playchess.com"]
[Source "ChessBase"]
[SourceQuality "1"]
[TimeControl "5400+30"]

1. c4 {[%emt 0:00:41]} Nf6 {[%emt 0:00:40]} 2. Nc3 {[%emt 0:00:19]} g6 {[%emt 0:00:22]} 3. e4 {[%emt 0:00:11]} d6 {[%emt 0:00:21]} 4. d4 {[%emt 0:00:01]} Bg7 {[%emt 0:00:15]} 5. h3 {[%emt 0:02:01]} Nbd7 {[%emt 0:00:31]} 6. Nf3 {[%emt 0:01:23]} e5 {[%emt 0:03:12]} 7. d5 {[%emt 0:01:04]} O-O {[%emt 0:00:24]} 8. Bd3 {[%emt 0:01:22]} Nc5 {[%emt 0:00:56]} 9. Bc2 {[%emt 0:00:04]} a5 {[%emt 0:00:13]} 10. Bg5 {[%emt 0:00:36]} h6 {[%emt 0:02:24]} 11. Be3 {[%emt 0:02:42]} b6 {[%emt 0:01:19]} 12. g4 {[%emt 0:01:46]} h5 {[%emt 0:02:24]} 13. Nh2 {[%emt 0:00:58]} Ba6 {[%emt 0:01:19]} 14. b3 {[%emt 0:00:22]} Rb8 {[%emt 0:02:58]} 15. Qf3 {[%emt 0:03:09]} Ncd7 {[%emt 0:00:58]} 16. Rg1 {[%emt 0:01:21]} b5 {[%emt 0:08:12]} 17. cxb5 {[%emt 0:00:31]} Bxb5 {[%emt 0:00:08]} 18. Nxb5 {[%emt 0:00:08]} Rxb5 {[%emt 0:00:13]} 19. Bd3 {[%emt 0:06:05]} Rb7 {[%emt 0:06:23]} 20. Rc1 {[%emt 0:03:39]} Qa8 {[%emt 0:12:22]} 21. Rc6 {[%emt 0:01:45]} a4 {[%emt 0:04:23]} 22. Ra6 {[%emt 0:01:01]} axb3 {[%emt 0:00:43]} 23. Rxa8 {[%emt 0:00:37]} Rxa8 {[%emt 0:00:09]} 24. a3 {[%emt 0:08:19]} Rxa3 {[%emt 0:00:43]} 25. g5 {[%emt 0:00:38]} Nxd5 {[%emt 0:06:10]} 26. Bb1 {[%emt 0:30:38]} Ra1 {[%emt 0:14:24]} 27. Kd2 {[%emt 0:01:24]} Ra2+ {[%emt 0:07:14]} 28. Bxa2 {[%emt 0:03:51]} bxa2 {[%emt 0:00:10]} 29. Ra1 {[%emt 0:00:11]} Nb4 {[%emt 0:03:54]} 30. Qd1 {[%emt 0:07:25]} d5 {[%emt 0:00:25]} 31. Qa4 {[%emt 0:00:19]} c6 {[%emt 0:01:37]} 32. Qa8+ {[%emt 0:01:15]} Rb8 {[%emt 0:00:18]} 33. Qa7 {[%emt 0:00:02]} d4 {[%emt 0:00:41]} 34. Nf1 {[%emt 0:05:18]} Rb5 {[%emt 0:04:27]} 35. Qxd7 {[%emt 0:00:24]} Rc5 {[%emt 0:01:39]} 36. Kd1 {[%emt 0:03:36]} dxe3 {[%emt 0:00:25]} 37. Nxe3 {[%emt 0:00:12]} Rc3 {[%emt 0:01:47]} 38. Kd2 {[%emt 0:04:51]} Rb3 {[%emt 0:00:34]} 39. Qb7 {[%emt 0:01:57]} Rb2+ {[%emt 0:01:33]} 40. Kc3 {[%emt 0:00:06]} Rb1 {[%emt 0:00:26]} 41. Qa8+ {[%emt 0:03:50]} Bf8 {[%emt 0:00:35]} 42. Rxa2 {[%emt 0:00:09]} Nxa2+ {[%emt 0:00:35]} 43. Qxa2 {[%emt 0:00:02]} Rh1 {[%emt 0:00:15]} 44. f3 {[%emt 0:02:26]} Rxh3 {[%emt 0:00:40]} 45. Qg2 {[%emt 0:00:11]} Rh4 {[%emt 0:00:12]} 46. Qf2 {[%emt 0:01:15]} Rh1 {[%emt 0:01:42]} 47. Nf1 {[%emt 0:00:08]} Be7 {[%emt 0:03:11]} 48. Qg2 {[%emt 0:00:03]} Rh4 {[%emt 0:00:14]} 49. Ng3 {[%emt 0:01:18]} Kh7 {[%emt 0:00:10]} 50. Ne2 {[%emt 0:00:39]} f6 {[%emt 0:00:32]} 51. Qf2 {[%emt 0:00:26]} Rh3 {[%emt 0:01:33]} 52. Qg2 {[%emt 0:00:19]} Rh4 {[%emt 0:00:19]} 53. Qf2 {[%emt 0:00:01]} Rh3 {[%emt 0:00:37]} 54. Ng1 {[%emt 0:00:18]} Rh1 {[%emt 0:00:18]} 55. Qa7 {[%emt 0:00:14]} 1-0

[Event "Bijnor Open 2023"]
[Site "Bijnor"]
[Date "2023.12.02"]
[Round "5.2"]
[White "Ramnathan, Balasubramaniam"]
[Black "Ayush Saxena"]
[Result "1-0"]
[ECO "A00"]
[WhiteElo "1920"]
[BlackElo "1567"]
[Annotator "NA RC"]
[PlyCount "31"]
[EventDate "2023.11.29"]
[EventCountry "IND"]
[SourceTitle "playchess.com"]
[Source "ChessBase"]
[SourceQuality "1"]
[TimeControl "5400+30"]

1. e3 {[%emt 0:00:11]} Nf6 {[%emt 0:00:10]} 2. b3 {[%emt 0:00:09]} Nc6 {[%emt 0:00:17]} 3. Bb2 {[%emt 0:00:21]} d6 {[%emt 0:00:12]} 4. d4 {[%emt 0:00:54]} d5 {[%emt 0:01:27]} 5. Nf3 {[%emt 0:00:12]} Bf5 {[%emt 0:00:11]} 6. Bb5 {[%emt 0:00:18]} Bd7 {[%emt 0:01:38]} 7. O-O {[%emt 0:00:47]} e6 {[%emt 0:01:16]} 8. c4 {[%emt 0:00:19]} Ne7 {[%emt 0:02:14]} 9. Bxd7+ {[%emt 0:00:29]} Nxd7 {[%emt 0:00:23]} 10. Nc3 {[%emt 0:00:05]} c6 {[%emt 0:00:39]} 11. e4 {[%emt 0:00:32]} dxe4 {[%emt 0:02:44]} 12. Nxe4 {[%emt 0:00:06]} Nf5 {[%emt 0:00:19]} 13. d5 {[%emt 0:02:28]} Qc7 {[%emt 0:04:45]} 14. dxe6 {[%emt 0:01:19]} fxe6 {[%emt 0:00:25]} 15. Nfg5 {[%emt 0:00:42]} Ke7 {[%emt 0:05:13]} 16. Nxe6 {[%emt 0:02:26]} 1-0

[Event "Bijnor Open 2023"]
[Site "Bijnor"]
[Date "2023.12.02"]
[Round "5.3"]
[White "Mohammad Sameed"]
[Black "Verma Ashu"]
[Result "1-0"]
[ECO "C10"]
[WhiteElo "1468"]
[BlackElo "1674"]
[Annotator "NA RC"]
[PlyCount "53"]
[EventDate "2023.11.29"]
[EventCountry "IND"]
[SourceTitle "playchess.com"]
[Source "ChessBase"]
[SourceQuality "1"]
[TimeControl "5400+30"]

1. e4 {[%emt 0:02:06]} e6 {[%emt 0:02:46]} 2. d4 {[%emt 0:00:11]} d5 {[%emt 0:00:02]} 3. Nd2 {[%emt 0:00:07]} dxe4 {[%emt 0:00:11]} 4. Nxe4 {[%emt 0:00:11]} Nf6 {[%emt 0:00:24]} 5. Nxf6+ {[%emt 0:00:12]} Qxf6 {[%emt 0:00:01]} 6. Bd3 {[%emt 0:00:15]} Bd6 {[%emt 0:00:37]} 7. Nf3 {[%emt 0:00:11]} h6 {[%emt 0:00:14]} 8. Qe2 {[%emt 0:01:14]} Nc6 {[%emt 0:04:24]} 9. c3 {[%emt 0:12:24]} Ne7 {[%emt 0:00:29]} 10. Ne5 {[%emt 0:01:05]} a6 {[%emt 0:01:39]} 11. Qh5 {[%emt 0:05:06]} c5 {[%emt 0:04:04]} 12. Ng4 {[%emt 0:02:05]} Nd5 {[%emt 0:03:09]} 13. Nxf6+ {[%emt 0:00:46]} Nxf6 {[%emt 0:00:02]} 14. Qh4 {[%emt 0:00:57]} Bd7 {[%emt 0:00:54]} 15. dxc5 {[%emt 0:02:01]} Bxc5 {[%emt 0:00:04]} 16. Be3 {[%emt 0:00:36]} Be7 {[%emt 0:00:11]} 17. O-O-O {[%emt 0:00:49]} Bc6 {[%emt 0:00:42]} 18. f3 {[%emt 0:03:54]} O-O {[%emt 0:01:46]} 19. Bxh6 {[%emt 0:02:12]} gxh6 {[%emt 0:01:12]} 20. Qxh6 {[%emt 0:00:11]} Rfd8 {[%emt 0:01:02]} 21. h4 {[%emt 0:01:01]} Rxd3 {[%emt 0:02:09]} 22. Rxd3 {[%emt 0:00:57]} Ne8 {[%emt 0:00:43]} 23. Rh3 {[%emt 0:00:57]} Bf8 {[%emt 0:00:35]} 24. Rg3+ {[%emt 0:01:33]} Bg7 {[%emt 0:00:01]} 25. Rd4 {[%emt 0:01:07]} f5 {[%emt 0:00:25]} 26. Qxe6+ {[%emt 0:00:44]} Kh8 {[%emt 0:00:02]} 27. Qxf5 {[%emt 0:00:45]} 1-0

[Event "Bijnor Open 2023"]
[Site "Bijnor"]
[Date "2023.12.02"]
[Round "5.4"]
[White "Gopal Krishna Maheshwari"]
[Black "Ravish Chaudhary"]
[Result "1-0"]
[ECO "C54"]
[WhiteElo "1627"]
[BlackElo "1351"]
[Annotator "NA RC"]
[PlyCount "59"]
[EventDate "2023.11.29"]
[EventCountry "IND"]
[SourceTitle "playchess.com"]
[Source "ChessBase"]
[SourceQuality "1"]
[TimeControl "5400+30"]

1. e4 {[%emt 0:00:03]} e5 {[%emt 0:00:10]} 2. Nf3 {[%emt 0:00:08]} Nc6 {[%emt 0:00:04]} 3. Bc4 {[%emt 0:00:07]} Bc5 {[%emt 0:00:04]} 4. c3 {[%emt 0:01:33]} Nf6 {[%emt 0:00:06]} 5. d4 {[%emt 0:00:06]} exd4 {[%emt 0:00:05]} 6. b4 {[%emt 0:00:05]} Be7 {[%emt 0:00:08]} 7. e5 {[%emt 0:03:28]} Ng4 {[%emt 0:00:10]} 8. cxd4 {[%emt 0:06:32]} Bxb4+ {[%emt 0:00:03]} 9. Nbd2 {[%emt 0:12:25]} O-O {[%emt 0:01:15]} 10. h3 {[%emt 0:07:11]} d5 {[%emt 0:01:40]} 11. Bd3 {[%emt 0:02:31]} Nh6 {[%emt 0:00:50]} 12. Qc2 {[%emt 0:02:51]} g6 {[%emt 0:03:55]} 13. O-O {[%emt 0:02:19]} Bf5 {[%emt 0:02:10]} 14. Nb3 {[%emt 0:01:22]} Bxd3 {[%emt 0:01:16]} 15. Qxd3 {[%emt 0:00:03]} Nf5 {[%emt 0:03:15]} 16. Rb1 {[%emt 0:04:13]} a6 {[%emt 0:24:04]} 17. g4 {[%emt 0:13:28]} Nh4 {[%emt 0:06:47]} 18. Bh6 {[%emt 0:10:22]} Re8 {[%emt 0:03:57]} 19. Nh2 {[%emt 0:08:02]} g5 {[%emt 0:23:54]} 20. Qe3 {[%emt 0:02:21]} f6 {[%emt 0:03:43]} 21. f4 {[%emt 0:02:34]} Ng6 {[%emt 0:07:00]} 22. f5 {[%emt 0:03:38]} Nh4 {[%emt 0:03:38]} 23. Bxg5 {[%emt 0:02:04]} fxg5 {[%emt 0:00:02]} 24. f6 {[%emt 0:00:10]} Kf7 {[%emt 0:00:46]} 25. Qxg5 {[%emt 0:00:18]} Ng6 {[%emt 0:01:34]} 26. Qh5 {[%emt 0:00:14]} Rh8 {[%emt 0:01:03]} 27. Nf3 {[%emt 0:00:03]} h6 {[%emt 0:04:12]} 28. Nh4 {[%emt 0:00:02]} Qg8 {[%emt 0:02:58]} 29. Nxg6 {[%emt 0:00:05]} Ke6 {[%emt 0:02:56]} 30. Qf5+ {[%emt 0:00:17]} 1-0

[Event "Bijnor Open 2023"]
[Site "Bijnor"]
[Date "2023.12.02"]
[Round "5.5"]
[White "Amartya Kumar"]
[Black "Vatsal Makol"]
[Result "1/2-1/2"]
[ECO "B22"]
[WhiteElo "1375"]
[BlackElo "1478"]
[Annotator "NA RC"]
[PlyCount "181"]
[EventDate "2023.11.29"]
[EventCountry "IND"]
[SourceTitle "playchess.com"]
[Source "ChessBase"]
[SourceQuality "1"]
[TimeControl "5400+30"]

1. e4 {[%emt 0:00:10]} c5 {[%emt 0:00:31]} 2. d4 {[%emt 0:00:07]} cxd4 {[%emt 0:00:21]} 3. c3 {[%emt 0:00:07]} Nf6 {[%emt 0:00:39]} 4. e5 {[%emt 0:00:05]} Nd5 {[%emt 0:00:15]} 5. Nf3 {[%emt 0:00:06]} Nc6 {[%emt 0:00:24]} 6. cxd4 {[%emt 0:00:13]} d6 {[%emt 0:00:15]} 7. exd6 {[%emt 0:00:08]} e6 {[%emt 0:00:20]} 8. Nc3 {[%emt 0:00:06]} Nxc3 {[%emt 0:01:49]} 9. bxc3 {[%emt 0:00:05]} Bxd6 {[%emt 0:00:12]} 10. Bd3 {[%emt 0:00:06]} h6 {[%emt 0:02:22]} 11. O-O {[%emt 0:00:38]} O-O {[%emt 0:04:25]} 12. Re1 {[%emt 0:02:40]} Qf6 {[%emt 0:18:15]} 13. Qe2 {[%emt 0:01:46]} Rd8 {[%emt 0:03:24]} 14. Bb2 {[%emt 0:03:17]} Bf8 {[%emt 0:04:32]} 15. c4 {[%emt 0:02:27]} Qf4 {[%emt 0:04:06]} 16. Be4 {[%emt 0:07:44]} Qc7 {[%emt 0:07:46]} 17. d5 {[%emt 0:05:24]} Na5 {[%emt 0:04:09]} 18. Rac1 {[%emt 0:03:02]} Rb8 {[%emt 0:03:58]} 19. Be5 {[%emt 0:00:19]} Bd6 {[%emt 0:00:07]} 20. Bxd6 {[%emt 0:00:06]} Qxd6 {[%emt 0:00:15]} 21. c5 {[%emt 0:00:10]} Qf8 {[%emt 0:18:39]} 22. d6 {[%emt 0:00:36]} Bd7 {[%emt 0:01:08]} 23. Ne5 {[%emt 0:01:28]} Rbc8 {[%emt 0:02:02]} 24. Qf3 {[%emt 0:01:07]} Nc6 {[%emt 0:04:02]} 25. Qg3 {[%emt 0:04:51]} Nxe5 {[%emt 0:00:43]} 26. Qxe5 {[%emt 0:00:36]} Bc6 {[%emt 0:00:15]} 27. a4 {[%emt 0:02:14]} Bxe4 {[%emt 0:02:41]} 28. Qxe4 {[%emt 0:00:15]} b6 {[%emt 0:00:06]} 29. cxb6 {[%emt 0:01:39]} Rxc1 {[%emt 0:02:13]} 30. Rxc1 {[%emt 0:00:08]} axb6 {[%emt 0:00:05]} 31. g3 {[%emt 0:00:40]} Qxd6 {[%emt 0:01:39]} 32. Qc6 {[%emt 0:01:14]} Qxc6 {[%emt 0:00:35]} 33. Rxc6 {[%emt 0:00:00]} Rd4 {[%emt 0:01:06]} 34. Rxb6 {[%emt 0:00:00]} Rxa4 {[%emt 0:00:04]} 35. h4 {[%emt 0:00:00]} Ra5 {[%emt 0:00:52]} 36. Kg2 {[%emt 0:00:41]} g5 {[%emt 0:00:06]} 37. hxg5 {[%emt 0:00:10]} hxg5 {[%emt 0:00:01]} 38. g4 {[%emt 0:00:43]} Kg7 {[%emt 0:00:12]} 39. Kg3 {[%emt 0:00:26]} Ra3+ {[%emt 0:00:27]} 40. Kg2 {[%emt 0:00:23]} Kf6 {[%emt 0:00:04]} 41. Rb5 {[%emt 0:00:14]} Rd3 {[%emt 0:00:11]} 42. Ra5 {[%emt 0:00:15]} Rd5 {[%emt 0:00:17]} 43. Ra7 {[%emt 0:00:14]} Rd4 {[%emt 0:00:28]} 44. Kg3 {[%emt 0:00:09]} Rf4 {[%emt 0:00:27]} 45. Ra5 {[%emt 0:00:21]} Rd4 {[%emt 0:00:51]} 46. Ra7 {[%emt 0:00:10]} Rd6 {[%emt 0:00:31]} 47. Ra3 {[%emt 0:00:43]} Kg6 {[%emt 0:00:07]} 48. Re3 {[%emt 0:00:18]} f5 {[%emt 0:00:38]} 49. gxf5+ {[%emt 0:00:11]} exf5 {[%emt 0:00:33]} 50. Re8 {[%emt 0:00:06]} Rd3+ {[%emt 0:00:37]} 51. Kg2 {[%emt 0:00:06]} g4 {[%emt 0:01:21]} 52. Rg8+ {[%emt 0:00:45]} Kf6 {[%emt 0:01:07]} 53. Rf8+ {[%emt 0:00:13]} Ke5 {[%emt 0:00:05]} 54. Re8+ {[%emt 0:00:11]} Kf4 {[%emt 0:00:15]} 55. Rb8 {[%emt 0:00:07]} Rd4 {[%emt 0:00:36]} 56. Rb3 {[%emt 0:00:14]} Kg5 {[%emt 0:00:58]} 57. Rb8 {[%emt 0:00:12]} Rd3 {[%emt 0:00:37]} 58. Rg8+ {[%emt 0:00:12]} Kf4 {[%emt 0:00:24]} 59. Rb8 {[%emt 0:00:11]} Rd2 {[%emt 0:00:28]} 60. Rb4+ {[%emt 0:00:06]} Kg5 {[%emt 0:00:18]} 61. Rb8 {[%emt 0:00:05]} Re2 {[%emt 0:00:46]} 62. Rg8+ {[%emt 0:00:19]} Kf4 {[%emt 0:00:04]} 63. Rb8 {[%emt 0:00:09]} Re5 {[%emt 0:02:45]} 64. Rb4+ {[%emt 0:00:20]} Re4 {[%emt 0:00:38]} 65. Rb8 {[%emt 0:00:32]} Rd4 {[%emt 0:00:21]} 66. Ra8 {[%emt 0:00:12]} Ke4 {[%emt 0:00:52]} 67. Re8+ {[%emt 0:00:07]} Kf4 {[%emt 0:00:19]} 68. Rb8 {[%emt 0:00:02]} Rd3 {[%emt 0:00:45]} 69. Rb4+ {[%emt 0:00:05]} Ke5 {[%emt 0:00:18]} 70. Rb5+ {[%emt 0:00:06]} Ke4 {[%emt 0:00:25]} 71. Rb4+ {[%emt 0:00:25]} Ke5 {[%emt 0:00:39]} 72. Rb5+ {[%emt 0:00:08]} Kf6 {[%emt 0:00:04]} 73. Rb6+ {[%emt 0:00:17]} Kg5 {[%emt 0:00:05]} 74. Rb8 {[%emt 0:00:07]} Rd1 {[%emt 0:01:18]} 75. Rg8+ {[%emt 0:00:10]} Kf4 {[%emt 0:00:05]} 76. Rb8 {[%emt 0:00:05]} Rd5 {[%emt 0:00:31]} 77. Rb4+ {[%emt 0:00:05]} Ke5 {[%emt 0:00:43]} 78. Kg3 {[%emt 0:00:20]} Rd3+ {[%emt 0:00:15]} 79. Kg2 {[%emt 0:00:05]} f4 {[%emt 0:01:04]} 80. Rb5+ {[%emt 0:00:18]} Rd5 {[%emt 0:00:32]} 81. Rb8 {[%emt 0:00:12]} Rd1 {[%emt 0:00:56]} 82. Re8+ {[%emt 0:00:06]} Kf5 {[%emt 0:00:12]} 83. Rf8+ {[%emt 0:00:08]} Ke4 {[%emt 0:00:11]} 84. Re8+ {[%emt 0:00:05]} Kf5 {[%emt 0:03:47]} 85. Rf8+ {[%emt 0:00:06]} Ke4 {[%emt 0:00:03]} 86. Re8+ {[%emt 0:00:11]} Kd3 {[%emt 0:02:22]} 87. Rd8+ {[%emt 0:00:13]} Ke2 {[%emt 0:00:03]} 88. Re8+ {[%emt 0:00:07]} Kd3 {[%emt 0:00:58]} 89. Rd8+ {[%emt 0:00:04]} Ke2 {[%emt 0:00:06]} 90. Re8+ {[%emt 0:00:04]} Kd3 {[%emt 0:00:14]} 91. Rd8+ {[%emt 0:00:50]} 1/2-1/2

[Event "Bijnor Open 2023"]
[Site "Bijnor"]
[Date "2023.12.02"]
[Round "5.6"]
[White "Shaurya Prabhakar"]
[Black "Ojas Joshi"]
[Result "1/2-1/2"]
[ECO "D02"]
[WhiteElo "1578"]
[BlackElo "1342"]
[Annotator "NA RC"]
[PlyCount "40"]
[EventDate "2023.11.29"]
[EventCountry "IND"]
[SourceTitle "playchess.com"]
[Source "ChessBase"]
[SourceQuality "1"]
[TimeControl "5400+30"]

1. Nf3 {[%emt 0:00:29]} Nf6 {[%emt 0:00:14]} 2. g3 {[%emt 0:00:09]} d5 {[%emt 0:01:39]} 3. Bg2 {[%emt 0:00:09]} c5 {[%emt 0:00:23]} 4. d4 {[%emt 0:01:10]} cxd4 {[%emt 0:02:36]} 5. Nxd4 {[%emt 0:00:10]} e5 {[%emt 0:02:10]} 6. Nb3 {[%emt 0:00:15]} h6 {[%emt 0:00:43]} 7. O-O {[%emt 0:02:19]} Be7 {[%emt 0:00:31]} 8. c3 {[%emt 0:01:18]} Nc6 {[%emt 0:03:48]} 9. Qc2 {[%emt 0:01:34]} Be6 {[%emt 0:04:00]} 10. a4 {[%emt 0:01:22]} O-O {[%emt 0:02:52]} 11. a5 {[%emt 0:01:34]} Rc8 {[%emt 0:00:50]} 12. Qd1 {[%emt 0:07:00]} Qc7 {[%emt 0:16:08]} 13. a6 {[%emt 0:02:33]} bxa6 {[%emt 0:05:51]} 14. Be3 {[%emt 0:09:13]} Rfd8 {[%emt 0:12:00]} 15. Nc5 {[%emt 0:14:29]} Bxc5 {[%emt 0:10:11]} 16. Bxc5 {[%emt 0:00:08]} Qb7 {[%emt 0:01:02]} 17. b4 {[%emt 0:11:30]} a5 {[%emt 0:07:45]} 18. Qa4 {[%emt 0:06:33]} Nd7 {[%emt 0:03:58]} 19. Rc1 {[%emt 0:04:01]} Nxc5 {[%emt 0:06:54]} 20. bxc5 {[%emt 0:00:13]} Qe7 {[%emt 0:01:39]} 1/2-1/2

[Event "Bijnor Open 2023"]
[Site "Bijnor"]
[Date "2023.12.02"]
[Round "5.7"]
[White "Gaurav Sunil Dutt Rana"]
[Black "Darsh Ilwadi"]
[Result "1-0"]
[ECO "A90"]
[WhiteElo "1235"]
[BlackElo "1445"]
[Annotator "NA RC"]
[PlyCount "77"]
[EventDate "2023.11.29"]
[EventCountry "IND"]
[SourceTitle "playchess.com"]
[Source "ChessBase"]
[SourceQuality "1"]
[TimeControl "5400+30"]

1. d4 {[%emt 0:00:19]} d5 {[%emt 0:00:07]} 2. c4 {[%emt 0:00:06]} e6 {[%emt 0:00:06]} 3. Nc3 {[%emt 0:00:06]} f5 {[%emt 0:00:06]} 4. g3 {[%emt 0:01:38]} c6 {[%emt 0:00:39]} 5. Bg2 {[%emt 0:01:29]} Nf6 {[%emt 0:00:13]} 6. Nf3 {[%emt 0:00:38]} Bd6 {[%emt 0:00:25]} 7. cxd5 {[%emt 0:02:14]} exd5 {[%emt 0:00:18]} 8. O-O {[%emt 0:04:16]} O-O {[%emt 0:00:22]} 9. Bf4 {[%emt 0:01:27]} Ne4 {[%emt 0:01:13]} 10. Qc2 {[%emt 0:02:28]} Bxf4 {[%emt 0:05:17]} 11. gxf4 {[%emt 0:00:08]} Qf6 {[%emt 0:00:08]} 12. e3 {[%emt 0:04:11]} Qh6 {[%emt 0:00:20]} 13. b4 {[%emt 0:02:51]} Nd7 {[%emt 0:05:15]} 14. a4 {[%emt 0:03:09]} Rf6 {[%emt 0:03:32]} 15. b5 {[%emt 0:09:08]} Rg6 {[%emt 0:01:55]} 16. Ne2 {[%emt 0:01:30]} Nf8 {[%emt 0:06:03]} 17. Ne5 {[%emt 0:02:53]} Rd6 {[%emt 0:00:46]} 18. f3 {[%emt 0:04:11]} Nf6 {[%emt 0:05:00]} 19. bxc6 {[%emt 0:04:35]} bxc6 {[%emt 0:01:13]} 20. Ng3 {[%emt 0:00:34]} g6 {[%emt 0:03:36]} 21. Nxc6 {[%emt 0:01:51]} Qg7 {[%emt 0:00:16]} 22. Rfc1 {[%emt 0:03:38]} Ba6 {[%emt 0:03:56]} 23. Qc5 {[%emt 0:02:28]} Qd7 {[%emt 0:02:02]} 24. Ne5 {[%emt 0:03:14]} Qe6 {[%emt 0:01:54]} 25. Bf1 {[%emt 0:04:12]} Bb7 {[%emt 0:05:20]} 26. Qc7 {[%emt 0:04:10]} Rb6 {[%emt 0:01:03]} 27. a5 {[%emt 0:02:34]} Rb3 {[%emt 0:03:20]} 28. a6 {[%emt 0:03:57]} Rc8 {[%emt 0:02:41]} 29. Qa5 {[%emt 0:00:28]} Bc6 {[%emt 0:00:38]} 30. Rab1 {[%emt 0:03:34]} Rxe3 {[%emt 0:02:24]} 31. Kf2 {[%emt 0:00:36]} Rxe5 {[%emt 0:02:11]} 32. fxe5 {[%emt 0:00:34]} N6d7 {[%emt 0:00:53]} 33. Bb5 {[%emt 0:01:56]} Nb6 {[%emt 0:01:19]} 34. Bxc6 {[%emt 0:03:14]} Rxc6 {[%emt 0:00:08]} 35. Rxc6 {[%emt 0:00:14]} Qxc6 {[%emt 0:00:08]} 36. Qc5 {[%emt 0:02:09]} Qa4 {[%emt 0:01:27]} 37. Rxb6 {[%emt 0:01:12]} Qa2+ {[%emt 0:01:07]} 38. Ne2 {[%emt 0:00:48]} axb6 {[%emt 0:01:25]} 39. Qxb6 {[%emt 0:07:54]} 1-0

[Event "Bijnor Open 2023"]
[Site "Bijnor"]
[Date "2023.12.02"]
[Round "5.8"]
[White "Zeeshan Ali"]
[Black "Rahul Suri"]
[Result "0-1"]
[ECO "B34"]
[WhiteElo "1347"]
[BlackElo "1184"]
[Annotator "NA RC"]
[PlyCount "126"]
[EventDate "2023.11.29"]
[EventCountry "IND"]
[SourceTitle "playchess.com"]
[Source "ChessBase"]
[SourceQuality "1"]
[TimeControl "5400+30"]

1. e4 {[%emt 0:00:10]} c5 {[%emt 0:00:26]} 2. Nf3 {[%emt 0:00:15]} g6 {[%emt 0:00:16]} 3. d4 {[%emt 0:02:12]} cxd4 {[%emt 0:00:15]} 4. Nxd4 {[%emt 0:00:15]} Nf6 {[%emt 0:00:15]} 5. Nc3 {[%emt 0:01:00]} Nc6 {[%emt 0:00:26]} 6. Be3 {[%emt 0:00:35]} Bg7 {[%emt 0:01:28]} 7. Be2 {[%emt 0:00:56]} d5 {[%emt 0:07:47]} 8. exd5 {[%emt 0:07:30]} Nxd5 {[%emt 0:00:15]} 9. Nxd5 {[%emt 0:01:48]} Qxd5 {[%emt 0:00:12]} 10. Bf3 {[%emt 0:04:08]} Qc4 {[%emt 0:01:16]} 11. Nxc6 {[%emt 0:02:34]} bxc6 {[%emt 0:00:24]} 12. Qd3 {[%emt 0:06:50]} Qa4 {[%emt 0:24:58]} 13. O-O-O {[%emt 0:05:42]} O-O {[%emt 0:02:36]} 14. Qb3 {[%emt 0:07:54]} Qa6 {[%emt 0:03:50]} 15. Qa3 {[%emt 0:02:28]} Qc4 {[%emt 0:09:46]} 16. Qb3 {[%emt 0:01:07]} Qa6 {[%emt 0:02:15]} 17. Qa3 {[%emt 0:00:24]} Qxa3 {[%emt 0:05:05]} 18. bxa3 {[%emt 0:00:30]} Be6 {[%emt 0:04:03]} 19. Bd4 {[%emt 0:11:21]} Bh6+ {[%emt 0:05:39]} 20. Be3 {[%emt 0:00:25]} Bxe3+ {[%emt 0:02:51]} 21. fxe3 {[%emt 0:00:11]} Rab8 {[%emt 0:04:30]} 22. Bxc6 {[%emt 0:07:25]} Bxa2 {[%emt 0:02:21]} 23. Be4 {[%emt 0:04:36]} Kg7 {[%emt 0:04:31]} 24. g3 {[%emt 0:02:15]} Rfc8 {[%emt 0:01:20]} 25. Rd7 {[%emt 0:04:16]} f5 {[%emt 0:06:21]} 26. Bb7 {[%emt 0:02:10]} Rxb7 {[%emt 0:03:42]} 27. Rxb7 {[%emt 0:00:08]} Bd5 {[%emt 0:00:16]} 28. Rxe7+ {[%emt 0:00:40]} Kf6 {[%emt 0:00:14]} 29. e4 {[%emt 0:02:27]} Bxe4 {[%emt 0:01:27]} 30. Rxe4 {[%emt 0:00:11]} fxe4 {[%emt 0:00:09]} 31. Rf1+ {[%emt 0:00:26]} Ke6 {[%emt 0:00:53]} 32. Rf4 {[%emt 0:00:43]} Rc4 {[%emt 0:00:41]} 33. Kd2 {[%emt 0:01:56]} Ra4 {[%emt 0:00:26]} 34. Kc3 {[%emt 0:04:42]} Rxa3+ {[%emt 0:00:44]} 35. Kb4 {[%emt 0:00:09]} Re3 {[%emt 0:00:35]} 36. c4 {[%emt 0:00:14]} Re1 {[%emt 0:00:31]} 37. Kb5 {[%emt 0:02:05]} g5 {[%emt 0:00:28]} 38. Rf8 {[%emt 0:00:20]} e3 {[%emt 0:01:16]} 39. Re8+ {[%emt 0:02:22]} Kd7 {[%emt 0:00:11]} 40. Re4 {[%emt 0:02:08]} e2 {[%emt 0:00:41]} 41. Kc5 {[%emt 0:00:10]} a5 {[%emt 0:00:59]} 42. Rd4+ {[%emt 0:00:42]} Ke6 {[%emt 0:01:40]} 43. Rd2 {[%emt 0:00:34]} Ke5 {[%emt 0:01:29]} 44. Rb2 {[%emt 0:01:58]} Ke4 {[%emt 0:00:30]} 45. Kb5 {[%emt 0:03:01]} Ke3 {[%emt 0:00:22]} 46. c5 {[%emt 0:02:39]} Rc1 {[%emt 0:00:22]} 47. Rxe2+ {[%emt 0:00:23]} Kxe2 {[%emt 0:00:07]} 48. h4 {[%emt 0:00:19]} gxh4 {[%emt 0:00:18]} 49. gxh4 {[%emt 0:00:04]} Kd3 {[%emt 0:00:24]} 50. c6 {[%emt 0:00:19]} Rxc6 {[%emt 0:00:23]} 51. Kxc6 {[%emt 0:00:04]} a4 {[%emt 0:00:07]} 52. Kd6 {[%emt 0:00:12]} a3 {[%emt 0:00:06]} 53. Ke6 {[%emt 0:00:17]} a2 {[%emt 0:00:07]} 54. Kf7 {[%emt 0:00:09]} a1=Q {[%emt 0:00:20]} 55. Kg8 {[%emt 0:00:07]} h5 {[%emt 0:00:36]} 56. Kh7 {[%emt 0:00:07]} Qf6 {[%emt 0:00:29]} 57. Kg8 {[%emt 0:00:24]} Ke4 {[%emt 0:00:16]} 58. Kh7 {[%emt 0:00:07]} Kf5 {[%emt 0:00:16]} 59. Kg8 {[%emt 0:00:17]} Ke6 {[%emt 0:01:05]} 60. Kh7 {[%emt 0:00:13]} Qxh4 {[%emt 0:01:12]} 61. Kg6 {[%emt 0:00:17]} Qg4+ {[%emt 0:00:16]} 62. Kh6 {[%emt 0:00:12]} Kf7 {[%emt 0:00:17]} 63. Kh7 {[%emt 0:00:13]} Qg7# {[%emt 0:00:26]} 0-1